bitfinex-derivatives/quotes_ETHF0:USTF0_20250321
["timestamp","ask_amount","ask_price","bid_price","bid_amount"]
[1742517506935,1.3702,1990.7,1990.6,1.0054]
[1742517507140,4.6232,1990.7,1990.6,1.0054]
[1742517507542,4.6232,1990.7,1990.6,4.2132]
[1742517507946,5.62855,1990.7,1990.6,45.0132]
[1742517508245,1.00528,1990.9,1990.8,1.00526]
[1742517508538,6.28368,1990.9,1990.8,1.00526]
[1742517508940,6.28368,1990.9,1990.8,40.8]
[1742517509645,6.28368,1990.9,1990.5,0.00754356]
[1742517509646,1.0054,1990.6,1990.5,0.00754356]
[1742517509839,1.0054,1990.6,1990.5,1.01299356]
[1742517510037,1.0054,1990.6,1990.5,40.80754356]
[1742517510239,1.0054,1990.6,1990.5,41.81299356]
[1742517510947,1.0054,1990.6,1990.5,40.80754356]
[1742517511147,2.3126,1990.6,1990.5,40.80754356]
[1742517511347,2.3126,1990.6,1990.5,43.13939356]
[1742517511844,2.3126,1990.6,1990.5,42.13394356]
[1742517512044,2.3126,1990.6,1990.5,43.13939356]
[1742517512741,1.3072,1990.6,1990.5,43.13939356]
[1742517512953,2.3126,1990.6,1990.5,43.13939356]
[1742517513357,1.3072,1990.6,1990.5,43.13939356]
[1742517514060,4.5602,1990.6,1990.5,43.13939356]
[1742517514359,5.5656,1990.6,1990.5,43.13939356]
[1742517514956,4.5602,1990.6,1990.5,43.13939356]
[1742517515157,3.253,1990.6,1990.5,43.13939356]
[1742517516159,4.2584,1990.6,1990.5,43.13939356]
[1742517517359,4.2584,1990.6,1990.5,43.67650062]
[1742517517661,4.2584,1990.6,1990.5,42.67105062]
[1742517517856,4.2584,1990.6,1990.5,42.13394356]
[1742517518463,4.2584,1990.6,1990.5,40.80754356]
[1742517518464,4.9108,1990.6,1990.5,40.80754356]
[1742517518663,1.00575,1989.9,1989.8,5.56318]
[1742517518857,1.00573,1990.0,1989.9,1.00573]
[1742517519062,1.4109,1990.0,1989.9,2.86623013]
[1742517519362,1.4109,1990.0,1989.9,43.66623013]
[1742517519563,2.4166,1990.0,1989.9,43.66623013]
[1742517519758,1.4109,1990.0,1989.9,43.66623013]
[1742517519959,3.25947953,1990.1,1990.0,1.0057]
[1742517520168,3.25947953,1990.1,1990.0,2.93360013]
[1742517520462,3.25947953,1990.1,1990.0,6.14160646]
[1742517520657,4.26512953,1990.1,1990.0,46.94160646]
[1742517521055,3.25947953,1990.1,1990.0,46.94160646]
[1742517521764,4.26512953,1990.1,1990.0,46.94160646]
[1742517522264,4.26512953,1990.1,1990.0,43.73380646]
[1742517522460,1.01312953,1990.1,1990.0,43.73380646]
[1742517522667,0.00747953,1990.1,1990.0,43.73380646]
[1742517522963,0.00747953,1990.1,1990.0,44.36518859]
[1742517523367,1.01312953,1990.1,1990.0,44.36518859]
[1742517523567,1.01312953,1990.1,1990.0,47.57298859]
[1742517523770,2.34652953,1990.1,1990.0,47.57298859]
[1742517524367,2.34652953,1990.1,1990.0,46.94160646]
[1742517525269,2.02467953,1990.1,1990.0,46.94160646]
[1742517525460,0.00747953,1990.1,1990.0,47.80343885]
[1742517526166,0.00747953,1990.1,1990.0,48.43504672]
[1742517526767,0.00747953,1990.1,1990.0,49.11464634]
[1742517530163,0.00747953,1990.1,1990.0,49.1147369]
[1742517531065,0.00747953,1990.1,1990.0,52.3677369]
[1742517531464,4.94666,1990.5,1990.4,1.0055]
[1742517531770,1.00539,1990.7,1990.6,1.00536]
[1742517531972,2.99183,1990.8,1990.7,1.00532]
[1742517532164,6.24483,1990.8,1990.7,1.00532]
[1742517533171,2.99183,1990.8,1990.7,1.00532]
[1742517533369,6.24483,1990.8,1990.7,1.00532]
[1742517533964,2.99183,1990.8,1990.7,1.00532]
[1742517535471,0.668,1991.0,1990.9,1.00525]
[1742517535674,3.252,1991.0,1990.9,1.00525]
[1742517536175,4.5928,1991.0,1990.9,2.96025]
[1742517536372,5.2902,1991.0,1990.9,2.96025]
[1742517536675,6.2954,1991.0,1990.9,2.96025]
[1742517536977,1.00535,1990.7,1990.6,1.00536]
[1742517537166,1.00532,1990.8,1990.7,1.0053]
[1742517537367,1.00532,1990.8,1990.7,1.54313365]
[1742517537674,1.3408,1990.9,1990.8,1.0053]
[1742517538274,2.34605,1990.9,1990.8,1.0053]
[1742517538473,2.34605,1990.9,1990.8,2.3154]
[1742517541277,1.3408,1990.9,1990.8,2.3154]
[1742517541578,2.34605,1990.9,1990.8,2.3154]
[1742517541970,2.34605,1990.9,1990.8,1.3101]
[1742517542176,1.0053,1990.8,1990.7,3.2078]
[1742517542370,2.9848,1990.8,1990.7,4.5309]
[1742517542578,6.2368,1990.8,1990.7,3.2078]
[1742517542878,6.2368,1990.8,1990.5,4.5309]
[1742517542879,1.0054,1990.6,1990.5,4.5309]
[1742517543175,1.0054,1990.6,1990.5,5.53635]
[1742517543475,1.0054,1990.6,1990.5,5.06854038]
[1742517543679,2.3179,1990.6,1990.5,4.5309]
[1742517544184,2.3179,1990.6,1990.5,5.53635]
[1742517544381,2.3179,1990.6,1990.5,4.5309]
[1742517544581,5.5699,1990.6,1990.5,5.06857996]
[1742517544878,5.5699,1990.6,1990.5,6.07402996]
[1742517545276,5.5699,1990.6,1990.5,6.07405903]
[1742517547083,5.5699,1990.6,1990.5,5.53635]
[1742517547283,5.5699,1990.6,1990.5,6.07403062]
[1742517547486,4.5645,1990.6,1990.5,6.07403062]
[1742517547778,3.2078,1991.0,1990.5,8.428741]
[1742517547983,1.00531,1990.9,1990.8,1.00527]
[1742517548471,1.00531,1990.9,1990.8,41.80527]
[1742517549077,3.01001,1990.9,1990.8,41.80527]
[1742517549678,6.26201,1990.9,1990.8,40.8]
[1742517549885,6.26201,1990.9,1990.8,41.8053]
[1742517550187,6.26201,1990.9,1990.8,43.1991]
[1742517550684,5.2567,1990.9,1990.8,43.1991]
[1742517550877,5.2567,1990.9,1990.8,46.4069]
[1742517551074,5.2567,1990.9,1990.8,46.94447597]
[1742517552180,3.252,1990.9,1990.8,46.94447597]
[1742517552980,3.252,1990.9,1990.8,47.57488511]
[1742517554075,3.0114,1991.0,1990.9,1.00525]
[1742517554278,3.0114,1991.0,1990.9,2.93612597]
[1742517556883,3.0114,1991.0,1990.9,2.93671852]
[1742517557084,3.0114,1991.0,1990.9,2.93671969]
[1742517557980,2.0062,1991.0,1990.9,2.93671969]
[1742517558486,2.0062,1991.0,1990.9,3.56804835]
[1742517558879,1.3123,1991.0,1990.9,3.56804835]
[1742517559085,1.3123,1991.0,1990.9,4.42953841]
[1742517559289,0.6748,1991.1,1991.0,1.0052]
[1742517559488,1.9941,1991.1,1991.0,3.64384108]
[1742517559687,1.9941,1991.1,1991.0,3.1055]
[1742517561282,4.25613,1991.2,1991.0,5.3081]
[1742517561482,1.3193,1991.2,1991.1,2.40425]
[1742517561690,2.39587,1991.3,1991.2,1.0051]
[1742517561691,5.64687,1991.3,1991.2,1.0051]
[1742517561989,5.64687,1991.3,1991.2,2.4042]
[1742517562190,4.6418,1991.3,1991.0,3.2078]
[1742517562386,1.00515,1991.1,1991.0,5.61206]
[1742517562786,1.00514,1991.2,1991.1,1.00513]
[1742517563083,1.00514,1991.2,1991.1,2.35403]
[1742517566893,1.00514,1991.2,1991.1,1.3489]
[1742517567193,1.00514,1991.2,1991.1,2.35405]
[1742517569390,1.00514,1991.2,1991.1,1.3489]
[1742517569590,1.00514,1991.2,1991.1,2.35405]
[1742517569895,1.00514,1991.2,1991.1,2.89275506]
[1742517571691,1.00514,1991.2,1991.1,2.89279232]
[1742517572899,1.00514,1991.2,1991.1,2.89278627]
[1742517573498,4.6418,1991.3,1990.9,0.00754356]
[1742517573702,1.0052,1991.0,1990.9,0.00754356]
[1742517573997,4.2562,1991.0,1990.9,0.00754356]
[1742517574200,4.9574,1991.0,1990.9,0.00754356]
[1742517575393,1.0053,1990.8,1990.7,40.8]
[1742517575598,4.2563,1990.8,1990.7,40.8]
[1742517576094,4.2563,1990.8,1990.7,42.2008]
[1742517576302,4.2563,1990.8,1990.7,43.20615]
[1742517577503,3.251,1990.8,1990.7,43.20615]
[1742517577702,4.2563,1990.8,1990.7,43.20615]
[1742517578204,3.251,1990.8,1990.7,43.20615]
[1742517578605,1.0053,1990.8,1990.7,43.20615]
[1742517578809,1.66893356,1990.9,1990.8,1.0053]
[1742517579111,4.91993356,1990.9,1990.8,2.295]
[1742517579399,4.91993356,1990.9,1990.8,1.2897]
[1742517580306,6.19493356,1990.9,1990.8,1.2897]
[1742517581697,1.0053,1990.8,1990.7,40.8]
[1742517581903,2.3322,1990.8,1990.7,40.8]
[1742517586808,1.00535,1990.7,1990.6,0.00754356]
[1742517587010,9.46845,1990.7,1990.6,6.403e-05]
[1742517587205,9.55621119,1990.7,1990.6,6.403e-05]
[1742517588411,6.34841119,1990.7,1990.6,6.403e-05]
[1742517589010,9.55621119,1990.7,1990.6,6.403e-05]
[1742517590204,6.26065,1990.7,1990.6,6.403e-05]
[1742517591005,6.26065,1990.7,1990.6,1.33776403]
[1742517592006,9.46845,1990.7,1990.6,6.403e-05]
[1742517592206,12.05621015,1990.7,1990.6,6.403e-05]
[1742517592809,12.05621003,1990.7,1990.6,6.403e-05]
[1742517593009,9.46845,1990.7,1990.6,6.403e-05]
[1742517594419,7.46415,1990.7,1990.6,0.68376403]
[1742517594614,7.46415,1990.7,1990.6,2.09066403]
[1742517598918,7.46415,1990.7,1990.6,1.40696403]
[1742517603925,7.46415,1990.7,1990.6,6.403e-05]
[1742517604622,7.55191329,1990.7,1990.6,6.403e-05]
[1742517604827,10.05191329,1990.7,1990.6,6.403e-05]
[1742517605315,1.00575,1989.9,1989.8,3.2078]
[1742517605517,4.25775,1989.9,1989.8,3.74703114]
[1742517605720,4.25775,1989.9,1989.8,3.74706352]
[1742517606317,4.25775,1989.9,1989.8,3.2078]
[1742517606517,4.25775,1989.9,1989.8,4.5468]
[1742517606722,5.54395,1989.9,1989.8,1.339]
[1742517608624,1.0058,1989.8,1989.7,0.00754356]
[1742517608825,2.3911,1989.8,1989.7,0.00754356]
[1742517612935,1.0058,1989.8,1989.7,0.00754356]
[1742517613139,1.0058,1989.8,1989.7,0.65834356]
[1742517615238,1.0058,1989.8,1989.7,1.95754356]
[1742517615729,2.4077,1989.8,1989.7,1.30674356]
[1742517618935,2.4077,1989.8,1989.7,0.00754356]
[1742517619436,2.49549968,1989.8,1989.7,0.00754356]
[1742517620034,1.00596,1989.5,1989.4,40.8]
[1742517620236,7.46676,1989.5,1989.4,42.0878]
[1742517621736,7.46676,1989.5,1989.4,43.4161]
[1742517623339,8.84706,1989.5,1989.4,43.4161]
[1742517623933,1.00596,1989.5,1989.4,43.4161]
[1742517624238,1.00596,1989.5,1989.4,44.42208]
[1742517624239,3.253,1989.5,1989.4,44.42208]
[1742517624943,3.26054356,1989.6,1989.5,1.00596]
[1742517625136,4.26646356,1989.6,1989.5,2.28336]
[1742517625338,3.26054356,1989.6,1989.5,2.28336]
[1742517626341,4.26645356,1989.6,1989.5,2.28336]
[1742517626940,3.26054356,1989.6,1989.5,2.28336]
[1742517628038,4.26645356,1989.6,1989.5,2.28336]
[1742517629134,1.01345356,1989.6,1989.5,2.82162035]
[1742517629732,0.00754356,1989.6,1989.5,2.82162035]
[1742517629932,0.00754356,1989.6,1989.5,3.68273804]
[1742517630243,1.00576,1990.0,1989.9,1.00573]
[1742517630434,1.00579,1989.9,1989.8,1.00577]
[1742517630641,1.0058,1989.8,1989.7,2.33211]
[1742517630841,1.0058,1989.8,1989.7,1.86446878]
[1742517631041,4.2588,1989.8,1989.7,1.3263]
[1742517631739,5.5804,1989.8,1989.7,1.3263]
[1742517634540,4.2588,1989.8,1989.7,1.3263]
[1742517634738,3.253,1989.8,1989.7,2.87176303]
[1742517634943,4.2588,1989.8,1989.7,2.87176303]
[1742517635143,4.2588,1989.8,1989.7,1.86595303]
[1742517635645,4.2588,1989.8,1989.7,1.3263]
[1742517637652,1.00596,1989.5,1989.4,44.6559]
[1742517637851,4.25896,1989.5,1989.4,46.74189599]
[1742517638049,4.25896,1989.5,1989.4,46.06033753]
[1742517638252,4.25896,1989.5,1989.4,46.69379346]
[1742517638450,4.25896,1989.5,1989.4,45.82952421]
[1742517638957,4.25896,1989.5,1989.4,45.82959351]
[1742517639254,5.53446,1989.5,1989.4,48.08286211]
[1742517639461,5.53446,1989.5,1989.4,47.21849188]
[1742517639850,5.53446,1989.5,1989.4,46.58503595]
[1742517640756,5.53446,1989.5,1989.4,43.37723595]
[1742517641048,5.53446,1989.5,1989.4,46.58504358]
[1742517641253,4.25896,1989.5,1989.4,43.37724358]
[1742517641450,4.25896,1989.5,1989.4,44.01075551]
[1742517642148,4.25896,1989.5,1989.4,43.36265551]
[1742517642856,4.25896,1989.5,1989.4,42.72914358]
[1742517646258,4.25896,1989.5,1989.4,44.67561668]
[1742517647159,4.25896,1989.5,1989.4,44.04214358]
[1742517648964,4.25896,1989.5,1989.4,44.0421274]
[1742517649462,4.25896,1989.5,1989.4,42.7291274]
[1742517651763,1.00601,1989.4,1989.3,0.00754356]
[1742517651964,3.73601,1989.4,1989.3,0.54793984]
[1742517652762,3.73601,1989.4,1989.3,1.87303984]
[1742517653065,1.00601,1989.4,1989.3,3.74351584]
[1742517653462,1.00601,1989.4,1989.3,4.37699635]
[1742517653963,5.65279,1989.5,1989.4,1.00601]
[1742517654262,5.65279,1989.5,1989.4,2.74242848]
[1742517654666,5.65279,1989.5,1989.4,3.37590899]
[1742517655466,5.65279,1989.5,1989.4,2.51177679]
[1742517656065,5.65279,1989.5,1989.4,1.87829628]
[1742517656562,5.65279,1989.5,1989.4,2.74247597]
[1742517656764,5.65279,1989.5,1989.4,2.74218162]
[1742517657269,5.65279,1989.5,1989.4,3.37563341]
[1742517657655,5.65279,1989.5,1989.4,2.51146146]
[1742517658866,5.65279,1989.5,1989.4,3.3759558]
[1742517659266,5.65279,1989.5,1989.4,2.83578738]
[1742517659472,5.65279,1989.5,1989.4,3.37605962]
[1742517659876,4.25899,1989.5,1989.4,7.58986962]
[1742517660167,3.253,1989.5,1989.4,8.27151985]
[1742517660776,4.25894,1989.6,1989.5,1.00592]
[1742517660977,4.25894,1989.6,1989.5,4.36827806]
[1742517661168,1.00594,1989.6,1989.5,46.50877806]
[1742517661367,4.25894,1989.6,1989.5,46.50877806]
[1742517661568,4.25894,1989.6,1989.5,47.14222985]
[1742517661963,4.25894,1989.6,1989.5,45.73752202]
[1742517662173,4.25891,1989.6,1989.5,47.1423384]
[1742517662377,3.253,1989.6,1989.5,47.1423384]
[1742517662876,1.00591,1989.6,1989.5,47.1423384]
[1742517664677,1.00591,1989.6,1989.5,46.1364184]
[1742517665776,2.36341,1989.6,1989.5,45.4364184]
[1742517665978,3.04291,1989.6,1989.5,44.11426817]
[1742517666276,3.04291,1989.6,1989.5,2.44985633]
[1742517666778,3.04291,1989.6,1989.5,1.81640454]
[1742517667873,3.04291,1989.6,1989.5,2.45098887]
[1742517668278,3.04291,1989.6,1989.5,3.31622005]
[1742517669582,6.29591,1989.6,1989.5,3.31622005]
[1742517670079,6.29591,1989.6,1989.5,1.8167527]
[1742517671079,6.29591,1989.6,1989.5,2.45041786]
[1742517675874,6.29591,1989.6,1989.5,2.45006611]
[1742517676785,6.29591,1989.6,1989.5,1.81640095]
[1742517676974,6.29591,1989.6,1989.5,0.54040095]
[1742517677885,1.00596,1989.5,1989.4,42.1184]
[1742517678082,3.05156,1989.5,1989.4,41.34053319]
[1742517678383,3.05156,1989.5,1989.4,41.9743769]
[1742517678584,3.05156,1989.5,1989.4,42.83917937]
[1742517679780,3.05156,1989.5,1989.4,42.83870737]
[1742517681682,3.05156,1989.5,1989.4,41.43384371]
[1742517681986,3.05156,1989.5,1989.4,42.83883401]
[1742517682182,2.52197356,1989.9,1989.6,1.00589]
[1742517682381,5.6069,1989.8,1989.7,1.40477555]
[1742517682585,5.6069,1989.8,1989.7,1.17422459]
[1742517682782,5.6069,1989.8,1989.7,2.03864117]
[1742517683378,5.6069,1989.8,1989.7,1.17422459]
[1742517684174,5.6069,1989.8,1989.7,2.03856713]
[1742517684378,5.6069,1989.8,1989.7,1.17422459]
[1742517684581,2.3539,1989.8,1989.7,1.17422459]
[1742517684880,5.6069,1989.8,1989.7,1.17422459]
[1742517685690,5.6069,1989.8,1989.7,1.17399612]
[1742517686188,5.6069,1989.8,1989.7,0.54015241]
[1742517688993,5.6069,1989.8,1989.7,2.78953261]
[1742517689289,5.6069,1989.8,1989.7,1.92545241]
[1742517689491,5.6069,1989.8,1989.7,2.55876454]
[1742517690288,5.6069,1989.8,1989.7,1.92545241]
[1742517690788,5.6069,1989.8,1989.7,0.54015241]
[1742517691591,1.00586,1989.7,1989.6,1.3728]
[1742517691890,2.32586,1989.7,1989.6,1.91298528]
[1742517692389,2.32586,1989.7,1989.6,2.54645717]
[1742517693892,2.32586,1989.7,1989.6,2.5464806]
[1742517694095,2.32586,1989.7,1989.6,2.54647899]
[1742517695789,1.00586,1989.7,1989.6,3.55238899]
[1742517695989,1.00586,1989.7,1989.6,4.19778899]
[1742517696994,1.00586,1989.7,1989.6,5.0621204]
[1742517697695,2.35806,1989.7,1989.6,5.0621567]
[1742517697891,2.35806,1989.7,1989.6,3.4108467]
[1742517699697,2.35806,1989.7,1989.6,3.41083261]
[1742517701298,2.35806,1989.7,1989.6,2.54648755]
[1742517701598,2.35806,1989.7,1989.6,2.54651593]
[1742517703396,2.35806,1989.7,1989.6,3.55242593]
[1742517703700,2.35806,1989.7,1989.6,3.55244591]
[1742517704093,2.35806,1989.7,1989.6,4.20624591]
[1742517704494,2.35806,1989.7,1989.6,3.20033591]
[1742517705802,2.35806,1989.7,1989.6,3.20035881]
[1742517706904,2.35806,1989.7,1989.6,3.20040082]
[1742517707703,5.56586,1989.7,1989.6,1.17388024]
[1742517707908,5.56586,1989.7,1989.6,0.63347189]
[1742517708101,4.56,1989.7,1989.3,1.31564356]
[1742517708306,1.00596,1989.5,1989.4,0.54057683]
[1742517708605,1.00596,1989.5,1989.4,41.34057683]
[1742517708803,2.34506,1989.5,1989.4,41.34057683]
[1742517709003,5.55286,1989.5,1989.4,41.34057683]
[1742517709204,1.00601,1989.4,1989.3,0.00754356]
[1742517709402,5.59711,1989.4,1989.3,0.00754356]
[1742517709604,5.59711,1989.4,1989.3,40.80754356]
[1742517711698,5.59711,1989.4,1989.3,0.00754356]
[1742517713900,1.00636,1988.7,1988.6,3.2078]
[1742517714102,4.25836,1988.7,1988.6,43.49021805]
[1742517714302,4.25836,1988.7,1988.6,45.83443771]
[1742517714503,4.25836,1988.7,1988.6,46.84084771]
[1742517714708,4.25836,1988.7,1988.6,47.47354372]
[1742517715601,4.25836,1988.7,1988.6,48.85754372]
[1742517716003,4.25836,1988.7,1988.6,48.22484771]
[1742517716908,4.25836,1988.7,1988.6,47.21843771]
[1742517717506,5.62706,1988.7,1988.6,46.6787]
[1742517721108,4.25836,1988.7,1988.6,47.68511]
[1742517721309,4.25836,1988.7,1988.6,46.6787]
[1742517722215,4.25836,1988.7,1988.6,47.68511]
[1742517722515,4.25836,1988.7,1988.6,46.6787]
[1742517723616,4.25836,1988.7,1988.6,45.2947]
[1742517723809,5.58916,1988.7,1988.6,45.2947]
[1742517726511,5.58916,1988.7,1988.6,42.0869]
[1742517726716,6.27006,1988.7,1988.6,1.2869]
[1742517727415,0.68224356,1988.8,1988.5,42.17104356]
[1742517727621,0.00754356,1988.8,1988.7,1.00636]
[1742517727924,0.00754356,1988.8,1988.7,3.04986]
[1742517728615,0.00754356,1988.8,1988.7,3.58811994]
[1742517730223,0.00754356,1988.8,1988.7,4.21936069]
[1742517730433,0.00754356,1988.8,1988.7,4.21950615]
[1742517731222,5.71056,1989.4,1988.8,2.51569]
[1742517731416,1.00616,1989.2,1989.1,1.00612]
[1742517731618,1.00616,1989.2,1989.1,2.97522]
[1742517732018,4.25916,1989.2,1989.1,2.97522]
[1742517732421,3.253,1989.2,1989.1,2.97522]
[1742517733224,3.253,1989.2,1989.1,3.51376198]
[1742517734424,0.00754356,1989.3,1989.2,1.00611]
[1742517734625,0.00754356,1989.3,1989.2,6.78864723]
[1742517736430,0.00754356,1989.3,1989.2,7.42066182]
[1742517736926,0.00754356,1989.3,1989.2,8.28294802]
[1742517737430,0.00754356,1989.3,1989.2,8.28283789]
[1742517738322,0.00754356,1989.3,1989.2,8.28334474]
[1742517738720,0.00754356,1989.3,1989.2,7.42093234]
[1742517738919,3.25954356,1989.3,1989.2,3.56993234]
[1742517739120,3.25954356,1989.3,1989.2,2.93791775]
[1742517739321,4.59084356,1989.3,1989.2,1.93180775]
[1742517739529,3.2078,1989.8,1989.6,1.00587]
[1742517739842,5.5449,1989.8,1989.7,1.3716]
[1742517740132,7.4656,1989.8,1989.7,1.3716]
[1742517746028,1.00586,1989.7,1989.6,0.00754356]
[1742517746230,1.69186,1989.7,1989.6,0.00754356]
[1742517746735,1.69186,1989.7,1989.6,1.31224356]
[1742517747435,1.69186,1989.7,1989.6,0.00754356]
[1742517750036,1.69186,1989.7,1989.6,1.38574356]
[1742517750231,0.686,1989.7,1989.6,2.39165356]
[1742517750435,3.2078,1989.8,1989.7,1.00586]
[1742517750637,7.4656,1989.8,1989.7,1.3782]
[1742517750838,0.00754356,1989.9,1989.8,1.0058]
[1742517751143,3.25954356,1989.9,1989.8,1.0058]
[1742517751342,3.25954356,1989.9,1989.8,2.3192]
[1742517751541,0.00754356,1989.9,1989.8,3.0106]
[1742517751740,3.25954356,1989.9,1989.8,3.0106]
[1742517752346,4.26529356,1989.9,1989.8,2.0048]
[1742517752641,4.26529356,1989.9,1989.8,3.0106]
[1742517756251,0.00754356,1989.9,1989.8,3.0106]
[1742517756738,1.01329356,1989.9,1989.8,43.8106]
[1742517758849,0.00754356,1989.9,1989.8,43.8106]
[1742517759049,1.39724356,1989.9,1989.8,43.8106]
[1742517759749,1.01329356,1989.9,1989.8,43.8106]
[1742517759945,2.40299356,1989.9,1989.8,43.8106]
[1742517760251,2.40299356,1989.9,1989.8,44.34976522]
[1742517762452,2.40299356,1989.9,1989.8,44.34992488]
[1742517764145,2.40299356,1989.9,1989.8,44.34990084]
[1742517765151,2.40299356,1989.9,1989.8,40.8]
[1742517766846,2.40299356,1989.9,1989.8,42.1435]
[1742517767851,2.40299356,1989.9,1989.8,43.1493]
[1742517768053,2.40299356,1989.9,1989.8,43.68875171]
[1742517768252,2.40299356,1989.9,1989.8,43.1493]
[1742517768557,2.40299356,1989.9,1989.8,43.68880358]
[1742517768859,2.40299356,1989.9,1989.8,42.68300358]
[1742517770148,2.40299356,1989.9,1989.8,42.1435]
[1742517773452,2.40299356,1989.9,1989.8,43.1493]
[1742517773963,2.40299356,1989.9,1989.8,42.1435]
[1742517774262,2.40299356,1989.9,1989.8,43.1493]
[1742517774263,3.25854356,1989.9,1989.8,43.1493]
[1742517774459,3.25854356,1989.9,1989.8,47.56099939]
[1742517774760,3.25854356,1989.9,1989.8,6.76099939]
[1742517775863,3.25854356,1989.9,1989.8,7.39394708]
[1742517776058,0.00754356,1989.9,1989.8,48.19394708]
[1742517776360,0.00754356,1989.9,1989.8,49.05753154]
[1742517777564,1.394,1990.1,1990.0,1.0057]
[1742517777565,4.644,1990.1,1990.0,1.0057]
[1742517777766,4.644,1990.1,1990.0,1.54546302]
[1742517777964,5.64968,1990.1,1990.0,2.40924038]
[1742517778263,4.93594,1990.2,1990.1,1.00565]
[1742517778461,4.93594,1990.2,1990.1,2.62852322]
[1742517778763,4.93594,1990.2,1990.1,3.63417322]
[1742517778959,1.68594,1990.2,1990.1,3.63417322]
[1742517779160,4.93594,1990.2,1990.1,3.63417322]
[1742517779359,1.68594,1990.2,1990.1,3.63417322]
[1742517779554,4.93594,1990.2,1990.1,3.63417322]
[1742517780161,4.93594,1990.2,1990.1,3.09435]
[1742517780454,4.93594,1990.2,1990.1,3.63425251]
[1742517781154,4.93594,1990.2,1990.1,4.26752635]
[1742517781567,4.93594,1990.2,1990.1,4.26761992]
[1742517781769,3.9303,1990.2,1990.1,3.63434608]
[1742517782160,5.2874,1990.2,1990.1,3.63434608]
[1742517782668,6.293,1990.2,1990.1,3.63434608]
[1742517783262,6.293,1990.2,1990.1,2.93144608]
[1742517785667,6.293,1990.2,1990.1,2.93113898]
[1742517787470,6.293,1990.2,1990.1,2.39145]
[1742517787771,6.293,1990.2,1990.1,2.93111779]
[1742517791474,6.293,1990.2,1990.1,43.73111779]
[1742517792375,6.293,1990.2,1990.1,43.19145]
[1742517793477,1.0056,1990.2,1990.1,43.19141]
[1742517793971,2.3308,1990.2,1990.1,43.19141]
[1742517794477,2.3308,1990.2,1990.1,42.1858]
[1742517794678,2.3308,1990.2,1990.1,1.3858]
[1742517795066,2.3308,1990.2,1990.1,42.1858]
[1742517799575,2.3308,1990.2,1990.1,43.19145]
[1742517799777,1.00559,1990.3,1990.2,1.0056]
[1742517799979,4.25559,1990.3,1990.2,3.732]
[1742517800175,3.25,1990.3,1990.2,3.732]
[1742517800378,1.3456,1990.4,1990.3,1.00555]
[1742517800676,5.60102,1990.6,1990.5,1.00545]
[1742517800977,1.0054,1990.6,1990.5,0.54036052]
[1742517801282,2.351,1990.6,1990.5,1.54575057]
[1742517801774,2.351,1990.6,1990.5,2.23025057]
[1742517801969,2.351,1990.6,1990.5,1.22480057]
[1742517802278,2.351,1990.6,1990.5,0.54030057]
[1742517803175,1.3456,1990.6,1990.3,3.2078]
[1742517803476,7.7328,1990.5,1990.3,1.3435]
[1742517803777,1.0056,1990.2,1990.1,41.80563]
[1742517803971,1.0056,1990.2,1990.1,43.89190908]
[1742517804367,1.0056,1990.2,1990.1,44.52553507]
[1742517805067,2.2806,1990.2,1990.1,45.86903507]
[1742517805275,2.2806,1990.2,1990.1,45.86932158]
[1742517805782,5.4186976,1991.0,1990.1,47.36369158]
[1742517805978,1.00547,1990.5,1990.4,1.00545]
[1742517806279,1.00547,1990.5,1990.4,3.71864761]
[1742517806472,2.41317,1990.5,1990.4,4.3522736]
[1742517807276,2.41317,1990.5,1990.4,4.35119023]
[1742517807983,1.00547,1990.5,1990.4,4.35119023]
[1742517808878,2.39217,1990.5,1990.4,4.35069312]
[1742517809078,2.39217,1990.5,1990.4,2.48191608]
[1742517809278,2.39217,1990.5,1990.4,3.48741608]
[1742517812673,2.39217,1990.5,1990.4,2.94752599]
[1742517813289,2.39217,1990.5,1990.4,3.48659171]
[1742517814287,2.39217,1990.5,1990.4,3.48665132]
[1742517815383,2.39217,1990.5,1990.4,2.94752599]
[1742517815781,2.39217,1990.5,1990.4,2.3139]
[1742517816178,2.39217,1990.5,1990.4,1.3084]
[1742517819179,2.39217,1990.5,1990.4,2.3139]
[1742517819385,2.39217,1990.5,1990.4,1.3084]
[1742517830584,2.39217,1990.5,1990.4,3.7181806]
[1742517830789,2.39217,1990.5,1990.4,4.35153558]
[1742517831094,2.39217,1990.5,1990.4,3.34603558]
[1742517832290,2.39217,1990.5,1990.4,5.033046]
[1742517832493,2.39217,1990.5,1990.4,4.35153558]
[1742517833388,2.39217,1990.5,1990.4,4.3513159]
[1742517833693,2.39217,1990.5,1990.4,5.03273976]
[1742517833989,2.39217,1990.5,1990.4,5.03273799]
[1742517834294,2.39217,1990.5,1990.4,5.71643799]
[1742517834694,5.64017,1990.5,1990.4,5.71643799]
[1742517836389,1.00543,1990.6,1990.5,1.00545]
[1742517836592,4.25343,1990.6,1990.5,4.49723301]
[1742517836992,5.62913,1990.6,1990.5,5.13058799]
[1742517837194,5.62913,1990.6,1990.5,3.04510498]
[1742517837395,5.62913,1990.6,1990.5,5.13066424]
[1742517838595,5.62913,1990.6,1990.5,3.44377464]
[1742517838795,5.62913,1990.6,1990.5,1.173401]
[1742517839205,5.62913,1990.6,1990.5,1.17360322]
[1742517839902,5.62913,1990.6,1990.5,0.54024824]
[1742517841304,5.62913,1990.6,1990.5,1.81894824]
[1742517841496,5.62913,1990.6,1990.5,2.82439824]
[1742517841904,5.62913,1990.6,1990.5,1.81894824]
[1742517845407,5.62913,1990.6,1990.5,0.54024824]
[1742517845408,8.83693,1990.6,1990.5,0.54024824]
[1742517845594,1.0055,1990.4,1990.3,2.37815]
[1742517845800,4.2535,1990.4,1990.3,2.91855522]
[1742517846604,4.2535,1990.4,1990.3,2.9185286]
[1742517847294,4.2535,1990.4,1990.3,1.9129786]
[1742517847607,4.9453,1990.4,1990.3,1.9129786]
[1742517847809,4.9453,1990.4,1990.3,1.3726]
[1742517848009,5.5967,1990.4,1990.3,1.3726]
[1742517849102,1.0056,1990.2,1990.1,40.8]